[Event "FIDE WYCC Open U14 2023"]
[Site "Montesilvano"]
[Date "2023.11.22"]
[Round "9.12"]
[White "Ljepic, Andrej"]
[Black "Coicev, Matei-Andrei"]
[Result "1/2-1/2"]
[ECO "B10"]
[WhiteElo "2236"]
[BlackElo "2006"]
[Annotator "RC"]
[PlyCount "125"]
[EventDate "2023.11.13"]
[EventType "swiss"]
[EventCountry "ITA"]
[SourceTitle "playchess.com"]
[Source "ChessBase"]
[SourceQuality "1"]
[TimeControl "40/5400+30:1800+30"]

1. e4 {[%emt 0:00:02]} c6 {[%emt 0:00:06]} 2. Nc3 {[%emt 0:00:41]} d5 {[%emt 0:00:07]} 3. d3 {[%emt 0:00:05]} dxe4 {[%emt 0:02:16]} 4. Nxe4 {[%emt 0:00:14]} Nf6 {[%emt 0:00:22]} 5. Qe2 {[%emt 0:00:05]} Nxe4 {[%emt 0:00:56]} 6. dxe4 {[%emt 0:00:06]} e5 {[%emt 0:04:07]} 7. Nf3 {[%emt 0:00:13]} Qc7 {[%emt 0:01:09]} 8. c3 {[%emt 0:01:26]} f6 {[%emt 0:02:32]} 9. Be3 {[%emt 0:02:23]} Be6 {[%emt 0:00:51]} 10. g3 {[%emt 0:05:45]} Nd7 {[%emt 0:00:56]} 11. Bg2 {[%emt 0:00:25]} Bc5 {[%emt 0:02:02]} 12. Bd2 {[%emt 0:05:50]} Nb6 {[%emt 0:05:22]} 13. b3 {[%emt 0:01:24]} a5 {[%emt 0:01:28]} 14. O-O {[%emt 0:01:52]} O-O {[%emt 0:02:56]} 15. Ne1 {[%emt 0:05:08]} Be7 {[%emt 0:08:59]} 16. Nd3 {[%emt 0:02:39]} Nd7 {[%emt 0:06:13]} 17. Be3 {[%emt 0:01:23]} b5 {[%emt 0:02:04]} 18. Bf3 {[%emt 0:09:29]} a4 {[%emt 0:05:03]} 19. Bg4 {[%emt 0:01:18]} Bf7 {[%emt 0:01:36]} 20. Qc2 {[%emt 0:02:40]} Rfd8 {[%emt 0:04:58]} 21. b4 {[%emt 0:05:25]} Nb6 {[%emt 0:09:25]} 22. Rfd1 {[%emt 0:01:20]} Nc4 {[%emt 0:02:17]} 23. Bc5 {[%emt 0:01:58]} Nd6 {[%emt 0:04:03]} 24. f3 {[%emt 0:01:02]} Nb7 {[%emt 0:00:49]} 25. Be3 {[%emt 0:02:52]} c5 {[%emt 0:06:39]} 26. Qf2 {[%emt 0:10:51]} cxb4 {[%emt 0:04:02]} 27. cxb4 {[%emt 0:04:02]} Ra6 {[%emt 0:05:01]} 28. f4 {[%emt 0:13:57]} Rad6 {[%emt 0:02:41]} 29. Be2 {[%emt 0:03:37]} Bc4 {[%emt 0:01:17]} 30. Qf1 {[%emt 0:00:33]} Qd7 {[%emt 0:01:59]} 31. Nf2 {[%emt 0:02:16]} Bxe2 {[%emt 0:01:28]} 32. Qxe2 {[%emt 0:00:13]} exf4 {[%emt 0:00:33]} 33. gxf4 {[%emt 0:01:06]} Qe6 {[%emt 0:00:26]} 34. Rdc1 {[%emt 0:01:30]} Rc6 {[%emt 0:02:25]} 35. Qxb5 {[%emt 0:04:16]} Rxc1+ {[%emt 0:00:07]} 36. Rxc1 {[%emt 0:01:13]} Nd6 {[%emt 0:00:23]} 37. Qa6 {[%emt 0:02:41]} Qxa2 {[%emt 0:01:37]} 38. Qa7 {[%emt 0:03:51]} Bf8 {[%emt 0:01:18]} 39. Qd4 {[%emt 0:01:22]} Nf7 {[%emt 0:01:39]} 40. Qc3 {[%emt 0:00:00]} Qb3 {[%emt 0:00:00]} 41. Qxb3 axb3 {[%emt 0:02:05]} 42. Rb1 {[%emt 0:06:45]} Bxb4 {[%emt 0:00:24]} 43. Rxb3 {[%emt 0:00:03]} Bd2 {[%emt 0:00:59]} 44. Kg2 {[%emt 0:00:43]} Bxe3 {[%emt 0:00:18]} 45. Rxe3 {[%emt 0:00:08]} Re8 {[%emt 0:04:39]} 46. Kf3 {[%emt 0:02:05]} Nd8 {[%emt 0:03:31]} 47. Ra3 {[%emt 0:02:54]} Ne6 {[%emt 0:00:19]} 48. Ke3 {[%emt 0:00:55]} Rd8 {[%emt 0:05:11]} 49. h4 {[%emt 0:01:59]} Rc8 {[%emt 0:02:55]} 50. Nd3 {[%emt 0:02:15]} Rc4 {[%emt 0:01:15]} 51. Ra8+ {[%emt 0:01:43]} Kf7 {[%emt 0:01:43]} 52. f5 {[%emt 0:04:31]} Nc7 {[%emt 0:05:19]} 53. Ra7 {[%emt 0:00:20]} Ke7 {[%emt 0:01:26]} 54. Nf4 {[%emt 0:05:23]} Kd6 {[%emt 0:01:18]} 55. Nh5 {[%emt 0:02:50]} g6 {[%emt 0:04:14]} 56. fxg6 {[%emt 0:03:06]} hxg6 {[%emt 0:00:04]} 57. Nxf6 {[%emt 0:00:41]} Rc3+ {[%emt 0:01:42]} 58. Kf4 {[%emt 0:01:19]} Ne6+ {[%emt 0:00:43]} 59. Kg4 {[%emt 0:00:05]} Ke5 {[%emt 0:01:14]} 60. Nh7 {[%emt 0:01:15]} Kxe4 {[%emt 0:03:25]} 61. Ra5 {[%emt 0:00:53]} Rc4 {[%emt 0:01:41]} 62. Ng5+ {[%emt 0:01:04]} Ke3+ {[%emt 0:00:11]} 63. Kg3 {[%emt 0:00:06]} 1/2-1/2

[Event "FIDE WYCC Open U14 2023"]
[Site "Montesilvano"]
[Date "2023.11.22"]
[Round "9.13"]
[White "Katsanis, Vasileios Dim"]
[Black "Nurgaliyev, Sauat"]
[Result "1-0"]
[ECO "A41"]
[WhiteElo "2173"]
[BlackElo "2235"]
[Annotator "RC"]
[PlyCount "99"]
[EventDate "2023.11.13"]
[EventType "swiss"]
[EventCountry "ITA"]
[SourceTitle "playchess.com"]
[Source "ChessBase"]
[SourceQuality "1"]
[TimeControl "40/5400+30:1800+30"]

1. d4 {[%emt 0:00:03]} d6 {[%emt 0:00:10]} 2. Nf3 {[%emt 0:00:04]} Nf6 {[%emt 0:00:11]} 3. c4 {[%emt 0:00:14]} Bf5 {[%emt 0:00:25]} 4. Nc3 {[%emt 0:00:34]} g6 {[%emt 0:00:09]} 5. e3 {[%emt 0:14:51]} Bg7 {[%emt 0:01:53]} 6. Bd3 {[%emt 0:00:23]} Bxd3 {[%emt 0:00:14]} 7. Qxd3 {[%emt 0:00:04]} O-O {[%emt 0:00:38]} 8. O-O {[%emt 0:00:45]} Nbd7 {[%emt 0:00:14]} 9. e4 {[%emt 0:01:52]} e5 {[%emt 0:00:06]} 10. d5 {[%emt 0:01:18]} a5 {[%emt 0:00:01]} 11. Bd2 {[%emt 0:07:23]} Nh5 {[%emt 0:05:11]} 12. g3 {[%emt 0:02:08]} Nc5 {[%emt 0:05:03]} 13. Qe2 {[%emt 0:01:35]} f5 {[%emt 0:03:28]} 14. Kg2 {[%emt 0:09:02]} Qd7 {[%emt 0:06:42]} 15. Ne1 {[%emt 0:16:33]} fxe4 {[%emt 0:03:34]} 16. Nxe4 {[%emt 0:00:56]} Nxe4 {[%emt 0:01:25]} 17. Qxe4 {[%emt 0:00:04]} Nf6 {[%emt 0:00:05]} 18. Qe2 {[%emt 0:01:04]} Qf5 {[%emt 0:06:57]} 19. Bc3 {[%emt 0:02:32]} Ne4 {[%emt 0:10:38]} 20. Rc1 {[%emt 0:05:12]} c6 {[%emt 0:02:50]} 21. f3 {[%emt 0:06:31]} Nxc3 {[%emt 0:14:10]} 22. Rxc3 {[%emt 0:01:43]} cxd5 {[%emt 0:07:02]} 23. cxd5 {[%emt 0:00:04]} e4 {[%emt 0:01:21]} 24. Rc2 {[%emt 0:09:11]} exf3+ {[%emt 0:05:07]} 25. Qxf3 {[%emt 0:04:09]} Qxc2+ {[%emt 0:02:54]} 26. Nxc2 {[%emt 0:00:01]} Rxf3 {[%emt 0:00:01]} 27. Kxf3 {[%emt 0:00:01]} Rf8+ {[%emt 0:13:54]} 28. Ke2 {[%emt 0:00:32]} Re8+ {[%emt 0:01:48]} 29. Kd3 {[%emt 0:02:03]} a4 {[%emt 0:01:25]} 30. Rf4 {[%emt 0:01:47]} Ra8 {[%emt 0:03:59]} 31. Rb4 {[%emt 0:00:43]} Ra5 {[%emt 0:00:40]} 32. Ne3 {[%emt 0:01:37]} a3 {[%emt 0:00:51]} 33. b3 {[%emt 0:08:42]} b5 {[%emt 0:00:37]} 34. Nc2 {[%emt 0:00:03]} g5 {[%emt 0:01:41]} 35. Nd4 {[%emt 0:00:30]} Bxd4 {[%emt 0:00:05]} 36. Rxd4 {[%emt 0:00:02]} Kf7 {[%emt 0:01:18]} 37. Kc3 {[%emt 0:00:11]} Ra8 {[%emt 0:01:00]} 38. Kb4 {[%emt 0:00:03]} Rc8 {[%emt 0:00:18]} 39. Rd2 {[%emt 0:00:12]} Rc5 {[%emt 0:00:31]} 40. Kxa3 {[%emt 0:00:00]} Ke7 {[%emt 0:00:00]} 41. Kb4 {[%emt 0:00:11]} Kd7 {[%emt 0:01:30]} 42. Ka5 {[%emt 0:00:36]} Kc7 {[%emt 0:10:28]} 43. b4 {[%emt 0:00:13]} Rc3 {[%emt 0:00:13]} 44. Kxb5 {[%emt 0:00:09]} Ra3 {[%emt 0:00:38]} 45. Rf2 {[%emt 0:00:24]} g4 {[%emt 0:03:10]} 46. Rf7+ {[%emt 0:00:44]} Kc8 {[%emt 0:00:04]} 47. Rxh7 {[%emt 0:00:37]} Rxa2 {[%emt 0:00:09]} 48. Rg7 {[%emt 0:00:11]} Rxh2 {[%emt 0:01:44]} 49. Kc6 {[%emt 0:00:30]} Rc2+ {[%emt 0:01:47]} 50. Kxd6 {[%emt 0:00:38]} 1-0

[Event "FIDE WYCC Open U14 2023"]
[Site "Montesilvano"]
[Date "2023.11.22"]
[Round "9.14"]
[White "Matyassy, Lazar"]
[Black "Artemov, Andriy"]
[Result "1/2-1/2"]
[ECO "D00"]
[WhiteElo "2281"]
[BlackElo "1779"]
[Annotator "RC"]
[PlyCount "118"]
[EventDate "2023.11.13"]
[EventType "swiss"]
[EventCountry "ITA"]
[SourceTitle "playchess.com"]
[Source "ChessBase"]
[SourceQuality "1"]
[TimeControl "40/5400+30:1800+30"]

1. d4 {[%emt 0:00:04]} d5 {[%emt 0:00:07]} 2. Bf4 {[%emt 0:00:20]} Nf6 {[%emt 0:00:07]} 3. Nc3 {[%emt 0:00:23]} c5 {[%emt 0:00:08]} 4. e3 {[%emt 0:00:04]} cxd4 {[%emt 0:00:03]} 5. exd4 {[%emt 0:00:07]} a6 {[%emt 0:00:04]} 6. Nf3 {[%emt 0:00:12]} Nc6 {[%emt 0:00:21]} 7. Ne5 {[%emt 0:00:06]} e6 {[%emt 0:00:29]} 8. Be2 {[%emt 0:01:14]} Be7 {[%emt 0:01:16]} 9. O-O {[%emt 0:01:08]} Nd7 {[%emt 0:03:04]} 10. Re1 {[%emt 0:05:52]} Ndxe5 {[%emt 0:01:21]} 11. dxe5 {[%emt 0:00:07]} Bg5 {[%emt 0:02:50]} 12. Qd2 {[%emt 0:02:15]} Bxf4 {[%emt 0:00:07]} 13. Qxf4 {[%emt 0:00:07]} O-O {[%emt 0:00:31]} 14. Bd3 {[%emt 0:03:34]} f6 {[%emt 0:07:56]} 15. Qh4 {[%emt 0:05:57]} g6 {[%emt 0:00:56]} 16. exf6 {[%emt 0:07:05]} Qxf6 {[%emt 0:00:36]} 17. Qxf6 {[%emt 0:00:26]} Rxf6 {[%emt 0:00:02]} 18. Na4 {[%emt 0:00:21]} b5 {[%emt 0:06:42]} 19. Nc5 {[%emt 0:06:54]} e5 {[%emt 0:02:06]} 20. Rad1 {[%emt 0:03:34]} Kf7 {[%emt 0:04:12]} 21. Be2 {[%emt 0:16:53]} Be6 {[%emt 0:16:30]} 22. Bf3 {[%emt 0:07:44]} e4 {[%emt 0:07:00]} 23. Be2 {[%emt 0:02:40]} Ne5 {[%emt 0:10:20]} 24. c3 {[%emt 0:08:02]} Rf8 {[%emt 0:06:15]} 25. Bf1 {[%emt 0:10:07]} Rf5 {[%emt 0:06:59]} 26. Rd2 {[%emt 0:03:27]} Ke7 {[%emt 0:02:51]} 27. Nxa6 {[%emt 0:02:42]} Rg5 {[%emt 0:02:16]} 28. Be2 {[%emt 0:01:05]} Bh3 {[%emt 0:05:54]} 29. g3 {[%emt 0:00:16]} Rgf5 {[%emt 0:04:26]} 30. Nb4 {[%emt 0:01:17]} Rxf2 {[%emt 0:04:50]} 31. Nxd5+ {[%emt 0:00:37]} Ke6 {[%emt 0:01:17]} 32. Nf4+ {[%emt 0:01:52]} R8xf4 {[%emt 0:00:07]} 33. gxf4 {[%emt 0:00:13]} Rg2+ {[%emt 0:01:53]} 34. Kh1 {[%emt 0:00:05]} Nf3 {[%emt 0:00:52]} 35. Bxf3 {[%emt 0:02:57]} Rxd2 {[%emt 0:00:02]} 36. Bxe4 {[%emt 0:02:41]} Kf6 {[%emt 0:00:02]} 37. b4 {[%emt 0:04:12]} Rxa2 {[%emt 0:00:39]} 38. Kg1 {[%emt 0:00:10]} h5 {[%emt 0:02:15]} 39. Re3 {[%emt 0:02:05]} Bd7 {[%emt 0:01:58]} 40. Rd3 {[%emt 0:00:00]} Be6 {[%emt 0:00:00]} 41. Rd6 {[%emt 0:03:37]} Ke7 {[%emt 0:00:41]} 42. Rc6 {[%emt 0:04:00]} h4 {[%emt 0:04:09]} 43. Rc5 {[%emt 0:10:01]} Re2 {[%emt 0:04:27]} 44. Bxg6 {[%emt 0:03:00]} h3 {[%emt 0:00:12]} 45. Rg5 {[%emt 0:03:58]} Re1+ {[%emt 0:04:17]} 46. Kf2 {[%emt 0:00:09]} Rh1 {[%emt 0:00:31]} 47. Kg3 {[%emt 0:00:41]} Rc1 {[%emt 0:00:27]} 48. Rc5 {[%emt 0:05:43]} Rg1+ {[%emt 0:00:19]} 49. Kh4 {[%emt 0:00:05]} Rg4+ {[%emt 0:01:45]} 50. Kh5 {[%emt 0:01:08]} Rxf4 {[%emt 0:00:17]} 51. Rxb5 {[%emt 0:02:22]} Kf6 {[%emt 0:00:08]} 52. Rg5 {[%emt 0:01:04]} Rf2 {[%emt 0:00:40]} 53. Rg3 {[%emt 0:00:32]} Rxh2 {[%emt 0:01:36]} 54. Rf3+ {[%emt 0:00:14]} Kg7 {[%emt 0:00:02]} 55. Bf5 {[%emt 0:01:17]} Bxf5 {[%emt 0:01:03]} 56. Rxf5 {[%emt 0:00:02]} Rc2 {[%emt 0:00:30]} 57. Rf3 {[%emt 0:00:27]} h2 {[%emt 0:00:06]} 58. Rh3 {[%emt 0:00:16]} Rxc3 {[%emt 0:00:14]} 59. Rxh2 {[%emt 0:00:07]} Rb3 {[%emt 0:00:04]} 1/2-1/2

[Event "FIDE WYCC Open U14 2023"]
[Site "Montesilvano"]
[Date "2023.11.22"]
[Round "9.15"]
[White "Bolat, Inayat"]
[Black "George Micheal, Kevin"]
[Result "1-0"]
[ECO "B47"]
[WhiteElo "2088"]
[BlackElo "2317"]
[Annotator "RC"]
[PlyCount "103"]
[EventDate "2023.11.13"]
[EventType "swiss"]
[EventCountry "ITA"]
[SourceTitle "playchess.com"]
[Source "ChessBase"]
[SourceQuality "1"]
[TimeControl "40/5400+30:1800+30"]

1. e4 {[%emt 0:00:06]} c5 {[%emt 0:01:30]} 2. Nf3 {[%emt 0:00:13]} e6 {[%emt 0:00:03]} 3. d4 {[%emt 0:00:07]} cxd4 {[%emt 0:00:03]} 4. Nxd4 {[%emt 0:00:03]} Nc6 {[%emt 0:00:06]} 5. Nc3 {[%emt 0:00:13]} Qc7 {[%emt 0:00:24]} 6. a3 {[%emt 0:00:25]} a6 {[%emt 0:02:35]} 7. Be3 {[%emt 0:00:09]} Nf6 {[%emt 0:00:28]} 8. f4 {[%emt 0:00:06]} d6 {[%emt 0:02:53]} 9. Qf3 {[%emt 0:00:30]} Be7 {[%emt 0:03:42]} 10. O-O-O {[%emt 0:02:57]} O-O {[%emt 0:04:25]} 11. Nb3 {[%emt 0:06:25]} b5 {[%emt 0:04:14]} 12. g4 {[%emt 0:02:38]} b4 {[%emt 0:06:08]} 13. axb4 {[%emt 0:00:31]} Nxb4 {[%emt 0:00:48]} 14. g5 {[%emt 0:00:26]} Nd7 {[%emt 0:02:19]} 15. h4 {[%emt 0:03:31]} a5 {[%emt 0:02:42]} 16. Nd4 {[%emt 0:06:29]} a4 {[%emt 0:09:17]} 17. Ncb5 {[%emt 0:00:59]} Qb8 {[%emt 0:12:12]} 18. Bd2 {[%emt 0:06:29]} a3 {[%emt 0:07:54]} 19. Bxb4 {[%emt 0:03:29]} a2 {[%emt 0:02:18]} 20. Kd2 {[%emt 0:00:07]} a1=Q {[%emt 0:01:20]} 21. Rxa1 {[%emt 0:00:08]} Rxa1 {[%emt 0:00:10]} 22. Nc6 {[%emt 0:00:07]} Qb6 {[%emt 0:01:51]} 23. Nxe7+ {[%emt 0:00:06]} Kh8 {[%emt 0:00:17]} 24. h5 {[%emt 0:12:31]} Qd8 {[%emt 0:13:30]} 25. h6 {[%emt 0:02:02]} Qxe7 {[%emt 0:03:40]} 26. hxg7+ {[%emt 0:01:23]} Kxg7 {[%emt 0:00:08]} 27. Qh3 {[%emt 0:02:24]} Rh8 {[%emt 0:00:28]} 28. Qc3+ {[%emt 0:00:25]} e5 {[%emt 0:01:45]} 29. Nxd6 {[%emt 0:00:57]} Qd8 {[%emt 0:01:36]} 30. Nf5+ {[%emt 0:00:51]} Kg8 {[%emt 0:00:09]} 31. Be7 {[%emt 0:01:44]} Nc5+ {[%emt 0:02:53]} 32. Bxd8 {[%emt 0:00:39]} Nxe4+ {[%emt 0:00:03]} 33. Ke3 {[%emt 0:00:36]} Nxc3 {[%emt 0:01:07]} 34. Nh6+ {[%emt 0:00:03]} Kf8 {[%emt 0:00:44]} 35. bxc3 {[%emt 0:00:12]} Bb7 {[%emt 0:04:36]} 36. Rg1 {[%emt 0:00:15]} Ba6 {[%emt 0:04:17]} 37. Bf6 {[%emt 0:01:00]} Rg8 {[%emt 0:02:27]} 38. Nxg8 {[%emt 0:00:24]} Bxf1 {[%emt 0:00:06]} 39. Nh6 {[%emt 0:00:51]} Re1+ {[%emt 0:01:06]} 40. Kf2 {[%emt 0:00:00]} Rc1 {[%emt 0:00:00]} 41. Rxf1 {[%emt 0:01:01]} Rxc2+ {[%emt 0:00:07]} 42. Kg3 {[%emt 0:00:23]} Rxc3+ {[%emt 0:00:07]} 43. Kg4 {[%emt 0:00:03]} Rc2 {[%emt 0:00:56]} 44. Rd1 {[%emt 0:00:08]} Rc8 {[%emt 0:00:13]} 45. fxe5 {[%emt 0:00:11]} Ke8 {[%emt 0:00:06]} 46. Rd8+ {[%emt 0:00:09]} Rxd8 {[%emt 0:00:04]} 47. Bxd8 {[%emt 0:00:06]} Kxd8 {[%emt 0:00:08]} 48. Nxf7+ {[%emt 0:00:02]} Ke7 {[%emt 0:00:04]} 49. Nd6 {[%emt 0:00:09]} Ke6 {[%emt 0:00:04]} 50. Kh5 {[%emt 0:00:19]} Kxe5 {[%emt 0:00:05]} 51. Kh6 {[%emt 0:00:09]} Kf4 {[%emt 0:00:14]} 52. Nf7 {[%emt 0:00:07]} 1-0

[Event "FIDE WYCC Open U14 2023"]
[Site "Montesilvano"]
[Date "2023.11.22"]
[Round "9.16"]
[White "Balint, Peter"]
[Black "Kuziev, Miraziz"]
[Result "0-1"]
[ECO "C78"]
[WhiteElo "2256"]
[BlackElo "2053"]
[Annotator "RC"]
[PlyCount "80"]
[EventDate "2023.11.13"]
[EventType "swiss"]
[EventCountry "ITA"]
[SourceTitle "playchess.com"]
[Source "ChessBase"]
[SourceQuality "1"]
[TimeControl "40/5400+30:1800+30"]

1. e4 {[%emt 0:00:01]} e5 {[%emt 0:01:38]} 2. Nf3 {[%emt 0:00:04]} Nc6 {[%emt 0:00:06]} 3. Bb5 {[%emt 0:00:04]} a6 {[%emt 0:00:06]} 4. Ba4 {[%emt 0:00:03]} Nf6 {[%emt 0:00:05]} 5. O-O {[%emt 0:00:11]} b5 {[%emt 0:00:04]} 6. Bb3 {[%emt 0:00:04]} Bc5 {[%emt 0:00:07]} 7. c3 {[%emt 0:12:14]} d6 {[%emt 0:00:17]} 8. d3 {[%emt 0:00:27]} h6 {[%emt 0:01:10]} 9. a4 {[%emt 0:04:05]} Rb8 {[%emt 0:00:26]} 10. Be3 {[%emt 0:03:44]} Bxe3 {[%emt 0:02:16]} 11. fxe3 {[%emt 0:00:07]} b4 {[%emt 0:00:04]} 12. Nbd2 {[%emt 0:02:31]} O-O {[%emt 0:01:48]} 13. Qe1 {[%emt 0:09:49]} Na5 {[%emt 0:02:42]} 14. Bc2 {[%emt 0:05:29]} Be6 {[%emt 0:34:57]} 15. h3 {[%emt 0:13:46]} c6 {[%emt 0:09:04]} 16. Kh2 {[%emt 0:06:50]} bxc3 {[%emt 0:04:58]} 17. bxc3 {[%emt 0:00:23]} Rb2 {[%emt 0:00:05]} 18. Rc1 {[%emt 0:02:26]} Nd7 {[%emt 0:05:45]} 19. Qg3 {[%emt 0:04:40]} Qe7 {[%emt 0:00:16]} 20. Rf2 {[%emt 0:05:42]} Ra2 {[%emt 0:06:41]} 21. d4 {[%emt 0:01:00]} Rb8 {[%emt 0:07:12]} 22. Bb1 {[%emt 0:03:03]} Rxa4 {[%emt 0:01:06]} 23. Nh4 {[%emt 0:02:14]} Qg5 {[%emt 0:00:53]} 24. Nf5 {[%emt 0:04:36]} Qxg3+ {[%emt 0:00:20]} 25. Kxg3 {[%emt 0:00:07]} Bxf5 {[%emt 0:00:04]} 26. exf5 {[%emt 0:00:08]} d5 {[%emt 0:00:04]} 27. dxe5 {[%emt 0:08:24]} Nxe5 {[%emt 0:00:22]} 28. e4 {[%emt 0:01:16]} Ra1 {[%emt 0:00:31]} 29. Rcf1 {[%emt 0:01:54]} Nac4 {[%emt 0:05:33]} 30. Bc2 {[%emt 0:04:56]} Ra3 {[%emt 0:00:04]} 31. Nxc4 {[%emt 0:01:49]} dxc4 {[%emt 0:00:32]} 32. Bd1 {[%emt 0:01:33]} Rxc3+ {[%emt 0:01:09]} 33. Kh2 {[%emt 0:00:05]} Rc1 {[%emt 0:00:17]} 34. Rc2 {[%emt 0:01:14]} Rbb1 {[%emt 0:00:15]} 35. Rd2 {[%emt 0:00:32]} c3 {[%emt 0:00:07]} 36. Rd8+ {[%emt 0:00:04]} Kh7 {[%emt 0:00:03]} 37. f6 {[%emt 0:00:13]} gxf6 {[%emt 0:00:22]} 38. Rxf6 {[%emt 0:00:40]} Rxd1 {[%emt 0:00:04]} 39. Re8 {[%emt 0:00:05]} c2 {[%emt 0:00:11]} 40. Rxe5 {[%emt 0:00:00]} Rf1 {[%emt 0:00:00]} 0-1

[Event "FIDE WYCC Open U14 2023"]
[Site "Montesilvano"]
[Date "2023.11.22"]
[Round "9.17"]
[White "Fan, Jingyi"]
[Black "Gkavardinas, Antonios"]
[Result "1/2-1/2"]
[ECO "D02"]
[WhiteElo "2035"]
[BlackElo "2230"]
[Annotator "RC"]
[PlyCount "110"]
[EventDate "2023.11.13"]
[EventType "swiss"]
[EventCountry "ITA"]
[SourceTitle "playchess.com"]
[Source "ChessBase"]
[SourceQuality "1"]
[TimeControl "40/5400+30:1800+30"]

1. d4 {[%emt 0:00:03]} d5 {[%emt 0:00:06]} 2. Nf3 {[%emt 0:00:04]} Nf6 {[%emt 0:00:11]} 3. Bf4 {[%emt 0:00:04]} c5 {[%emt 0:00:13]} 4. e3 {[%emt 0:00:03]} Nc6 {[%emt 0:00:13]} 5. Nbd2 {[%emt 0:00:04]} Qb6 {[%emt 0:00:24]} 6. dxc5 {[%emt 0:00:04]} Qxb2 {[%emt 0:00:10]} 7. Rb1 {[%emt 0:00:03]} Qc3 {[%emt 0:00:15]} 8. Bb5 {[%emt 0:00:03]} e6 {[%emt 0:00:42]} 9. O-O {[%emt 0:00:13]} Be7 {[%emt 0:00:43]} 10. e4 {[%emt 0:00:06]} O-O {[%emt 0:00:34]} 11. e5 {[%emt 0:00:03]} Nd7 {[%emt 0:00:24]} 12. Nb3 {[%emt 0:00:36]} Qb4 {[%emt 0:00:28]} 13. Nfd4 {[%emt 0:04:18]} Nxd4 {[%emt 0:00:45]} 14. Nxd4 {[%emt 0:00:04]} Qxc5 {[%emt 0:00:12]} 15. Re1 {[%emt 0:00:10]} a6 {[%emt 0:08:14]} 16. Bd3 {[%emt 0:00:16]} g6 {[%emt 0:02:20]} 17. Nb3 {[%emt 0:00:08]} Qc7 {[%emt 0:01:15]} 18. Qg4 {[%emt 0:04:53]} Re8 {[%emt 0:10:36]} 19. Nd4 {[%emt 0:06:49]} Bf8 {[%emt 0:03:50]} 20. h4 {[%emt 0:02:32]} Bg7 {[%emt 0:17:54]} 21. h5 {[%emt 0:04:25]} Nc5 {[%emt 0:02:26]} 22. hxg6 {[%emt 0:15:57]} fxg6 {[%emt 0:00:33]} 23. g3 {[%emt 0:13:30]} Re7 {[%emt 0:07:20]} 24. Qh4 {[%emt 0:08:09]} Rf7 {[%emt 0:02:00]} 25. Kg2 {[%emt 0:03:09]} Bd7 {[%emt 0:06:03]} 26. Nf3 {[%emt 0:10:51]} Nxd3 {[%emt 0:05:25]} 27. cxd3 {[%emt 0:00:46]} Rf5 {[%emt 0:03:38]} 28. Rec1 {[%emt 0:05:39]} Bc6 {[%emt 0:03:18]} 29. Nd4 {[%emt 0:01:43]} Rh5 {[%emt 0:03:48]} 30. Qg4 {[%emt 0:00:32]} Re8 {[%emt 0:00:27]} 31. Nxc6 {[%emt 0:03:23]} bxc6 {[%emt 0:00:34]} 32. d4 {[%emt 0:00:06]} Rf5 {[%emt 0:02:59]} 33. Qe2 {[%emt 0:01:14]} Qa7 {[%emt 0:06:18]} 34. Qb2 {[%emt 0:02:23]} g5 {[%emt 0:04:39]} 35. Be3 {[%emt 0:00:34]} Qf7 {[%emt 0:00:53]} 36. g4 {[%emt 0:05:10]} Rf3 {[%emt 0:02:06]} 37. Qe2 {[%emt 0:09:21]} Rf8 {[%emt 0:00:27]} 38. Rxc6 {[%emt 0:00:09]} h5 {[%emt 0:02:39]} 39. Rh1 {[%emt 0:00:24]} hxg4 {[%emt 0:02:18]} 40. Qc2 {[%emt 0:00:00]} Rh3 {[%emt 0:00:00]} 41. Rxh3 {[%emt 0:04:51]} gxh3+ {[%emt 0:01:57]} 42. Kxh3 {[%emt 0:00:07]} g4+ {[%emt 0:10:32]} 43. Kh2 {[%emt 0:04:09]} Qh5+ {[%emt 0:07:21]} 44. Kg1 {[%emt 0:01:01]} Rf3 {[%emt 0:02:08]} 45. Rc8+ {[%emt 0:02:55]} Bf8 {[%emt 0:01:08]} 46. Qc6 {[%emt 0:08:58]} Qf7 {[%emt 0:06:07]} 47. Bh6 {[%emt 0:09:07]} Qg6 {[%emt 0:01:22]} 48. Rxf8+ {[%emt 0:01:03]} Rxf8 {[%emt 0:00:36]} 49. Bxf8 {[%emt 0:00:04]} Qb1+ {[%emt 0:00:49]} 50. Kh2 {[%emt 0:01:11]} Qh7+ {[%emt 0:00:47]} 51. Kg1 {[%emt 0:01:39]} Qb1+ {[%emt 0:00:06]} 52. Kh2 {[%emt 0:00:06]} Qh7+ {[%emt 0:00:06]} 53. Kg2 {[%emt 0:02:52]} Qe4+ {[%emt 0:00:16]} 54. Kg1 {[%emt 0:00:39]} Qe1+ {[%emt 0:00:30]} 55. Kg2 {[%emt 0:00:07]} Qe4+ {[%emt 0:00:04]} 1/2-1/2